[Event "3rd VIZAG GM-Open 2022"]
[Site "Visakapatnam"]
[Date "2022.06.14"]
[Round "6.6"]
[White "Laxman, R.R."]
[Black "Mirzoev, Azer"]
[Result "1/2-1/2"]
[ECO "D11"]
[WhiteElo "2420"]
[BlackElo "2476"]
[Annotator "TA"]
[PlyCount "79"]
[EventDate "2022.06.13"]
[EventType "swiss"]
[EventCountry "IND"]
[SourceTitle "playchess.com"]
[Source "ChessBase"]
[SourceQuality "1"]
[TimeControl "5400+30"]

{[%evp 9,79,24,27,19,39,6,6,5,5,12,17,15,16,6,8,8,8,13,4,7,22,18,16,0,24,6,0,1,0,0,0,0,0,0,2,0,6,4,2,2,6,2,2,0,6,5,13,4,10,1,1,5,4,4,17,16,33,49,35,43,37,11,8,0,0,0,0,0,0,0,1,3]} 1. d4 {[%emt 0:00:03]} d5 {[%emt 0:04:57]} 2. Nf3 {[%emt 0:00:14]} Nf6 {[%emt 0:00:03]} 3. c4 {[%emt 0:00:06]} c6 {[%emt 0:00:04]} 4. e3 {[%emt 0:00:31]} a6 {[%emt 0:00:15]} 5. Nbd2 {[%emt 0:05:15]} Bf5 {[%emt 0:00:20]} 6. Nh4 {[%emt 0:01:54] D11: Slav Defence: 3 Nf3 sidelines and 3...Nf6 4 e3 Bg4.} Bg4 {[%emt 0:00:41]} 7. Be2 {[%emt 0:01:28]} Bxe2 {[%emt 0:00:08]} 8. Qxe2 {[%emt 0:00:03]} e6 {[%emt 0:00:11]} 9. Nhf3 {[%emt 0:00:09]} Nbd7 {[%emt 0:06:16]} 10. O-O {[%emt 0:00:24]} Be7 {[%emt 0:00:03] [#]} 11. e4 $146 {[%emt 0:00:58]} ({Predecessor:} 11. b3 O-O 12. e4 dxe4 13. Nxe4 a5 14. Bg5 a4 15. Nxf6+ Nxf6 16. Qc2 h6 17. Bh4 {1-0 (34) Studer,N (2546)-Laznicka,V (2648) Moscow 2019}) 11... dxe4 {[%emt 0:00:11]} 12. Nxe4 {[%emt 0:00:02]} Nxe4 {[%emt 0:00:08]} 13. Qxe4 {[%emt 0:00:04]} O-O {[%emt 0:00:09]} 14. Rd1 {[%emt 0:01:18]} Re8 {[%emt 0:00:34]} 15. Bf4 {[%emt 0:01:10]} Qa5 {[%emt 0:00:34]} 16. Qc2 {[%emt 0:05:24]} Nf8 {[%emt 0:01:44]} 17. Bd2 {[%emt 0:04:13]} Qc7 {[%emt 0:00:42]} 18. Rac1 {[%emt 0:00:46]} Rad8 {[%emt 0:00:28]} 19. Be3 {[%emt 0:01:21]} Ng6 {[%emt 0:04:42]} 20. Qb3 {[%emt 0:00:50]} Qb8 {[%emt 0:01:41]} 21. g3 {[%emt 0:06:54]} h6 {[%emt 0:02:21]} 22. Kg2 {[%emt 0:00:26]} Bd6 {[%emt 0:01:53]} 23. d5 {[%emt 0:02:07]} cxd5 {[%emt 0:00:58]} 24. cxd5 {[%emt 0:00:02]} exd5 {[%emt 0:10:14]} 25. Bb6 {[%emt 0:00:30]} Rc8 {[%emt 0:00:28]} 26. Qxd5 {[%emt 0:02:12]} Rxc1 {[%emt 0:01:02]} 27. Rxc1 {[%emt 0:00:02]} Ne7 {[%emt 0:01:00]} 28. Qd3 {[%emt 0:01:22]} Nc6 {[%emt 0:00:41]} 29. Nd4 {[%emt 0:00:40]} Nxd4 {[%emt 0:03:24]} 30. Qxd4 {[%emt 0:00:18]} Re6 {[%emt 0:02:26]} 31. Rc4 {[%emt 0:12:07]} Qe8 {[%emt 0:05:58]} 32. Qd5 {[%emt 0:01:29]} Qe7 {[%emt 0:04:03]} 33. Rc8+ {[%emt 0:03:19]} Kh7 {[%emt 0:00:06]} 34. Qd3+ {[%emt 0:00:06]} g6 $1 {[%emt 0:03:18]} 35. Bd4 {[%emt 0:00:07][%csl Gd4][%cal Rc8h8] [#]} Be5 {[%emt 0:01:21] Prevents Rh8+. Strongly threatening ...Qd7. The position is equal.} 36. Bxe5 {[%emt 0:01:40]} Rxe5 {[%emt 0:00:10]} 37. Qd4 {[%emt 0:02:44]} Qe6 {[%emt 0:07:14]} 38. Qd8 {[%emt 0:05:40][%csl Gc8][%cal Rd8h8]} Qd5+ {[%emt 0:01:23]} 39. Qxd5 {[%emt 0:00:06]} Rxd5 {[%emt 0:00:02]} 40. Rc7 {[%emt 0:00:07][%csl LRb7,LRf7] Weighted Error Value: White=0.04 (flawless) /Black=0.04 (flawless)} 1/2-1/2

[Event "3rd VIZAG GM-Open 2022"]
[Site "Visakapatnam"]
[Date "2022.06.14"]
[Round "6.7"]
[White "Nikitenko, Mihail"]
[Black "Gusain, Himal"]
[Result "0-1"]
[ECO "D04"]
[WhiteElo "2479"]
[BlackElo "2396"]
[Annotator "TA"]
[PlyCount "106"]
[EventDate "2022.06.13"]
[EventType "swiss"]
[EventCountry "IND"]
[SourceTitle "playchess.com"]
[Source "ChessBase"]
[SourceQuality "1"]
[TimeControl "5400+30"]

{[%evp 12,106,-6,-8,-12,-12,0,-13,0,0,0,-18,-8,-19,0,-33,-27,-20,-31,-24,-43,-51,-50,-98,-68,-65,-79,-90,-66,-58,-64,-66,-12,-41,-34,-64,-50,-55,-34,-36,-22,-62,-82,-86,-79,-139,-130,-133,-143,-127,-114,-230,-228,-206,-216,-212,-208,-407,-392,-403,-400,-418,-427,-422,-402,-386,-415,-398,-368,-597,-590,-592,-562,-543,-549,-713,-651,-594,-592,-695,-631,-789,-724,-725,-637,-815,-808,-1366,-1624,-3833,-3081,-2502,-2127,-1528,-863,-834,-779]} 1. Nf3 {[%emt 0:00:12]} c5 {[%emt 0:07:28]} 2. e3 {[%emt 0:00:08]} Nf6 {[%emt 0:00:42]} 3. d4 {[%emt 0:00:06]} g6 {[%emt 0:00:28]} 4. Bd3 {[%emt 0:01:06]} Bg7 {[%emt 0:00:09]} 5. O-O {[%emt 0:00:07]} O-O {[%emt 0:00:09]} 6. Nbd2 {[%emt 0:01:02]} d5 {[%emt 0:03:45] was the old line (6...d6).} 7. b3 {[%emt 0:01:03]} Nc6 {[%emt 0:00:51] D04: Colle System.} 8. Bb2 {[%emt 0:00:04]} cxd4 {[%emt 0:00:42]} 9. exd4 {[%emt 0:00:05]} Nb4 {[%emt 0:00:48] The position is equal.} 10. Be2 {[%emt 0:00:07]} Bf5 {[%emt 0:00:06]} 11. Ne1 {[%emt 0:02:37]} Rc8 {[%emt 0:01:17][%cal Rb4c2]} 12. c3 {[%emt 0:00:06]} Nc6 {[%emt 0:00:09]} 13. Nd3 {[%emt 0:01:16] Inhibits e5.} Bxd3 {[%emt 0:03:37]} 14. Bxd3 {[%emt 0:00:05]} e5 {[%emt 0:00:04]} 15. dxe5 {[%emt 0:00:42]} Nxe5 {[%emt 0:00:07] [#]} 16. Bc2 $146 {[%emt 0:00:36]} ({Predecessor:} 16. Be2 Qa5 17. Re1 Rfd8 18. Qb1 Bh6 19. Nf1 Bg7 20. Ng3 Re8 21. h3 Qb6 22. Bf1 {0-1 (45) Huettl,G (1957)-Ertl,D (1792) Regensburg 2004}) 16... Qc7 {[%emt 0:00:41]} 17. Rc1 {[%emt 0:02:09]} (17. Nf3 $15 {should be considered.}) 17... Rfd8 {[%emt 0:01:11]} ({Much weaker is} 17... Neg4 $6 18. g3 $15) 18. Bb1 {[%emt 0:02:28]} Ne4 {[%emt 0:03:17]} 19. Qe2 {[%emt 0:00:55] [#]} Ng4 $1 {[%emt 0:05:25][%csl Gg4][%cal Rc7h2] Black is much more active. The white rooks are badly placed. Pair of Knights!} 20. g3 {[%emt 0:01:54]} Nxd2 {[%emt 0:05:20]} 21. Qxd2 {[%emt 0:00:33]} Nf6 {[%emt 0:02:17]} (21... Bh6 $15 22. f4 Bg7) 22. Qe2 {[%emt 0:03:46]} Re8 {[%emt 0:02:21]} 23. Qd3 {[%emt 0:02:19]} Ne4 $1 {[%emt 0:00:36]} 24. Rfe1 {[%emt 0:00:12]} Qc5 {[%emt 0:02:35]} 25. Re2 {[%emt 0:02:03]} Re6 {[%emt 0:02:46]} 26. b4 {[%emt 0:02:21]} Qc6 {[%emt 0:11:14] White is now going downhill.} 27. Rec2 {[%emt 0:01:59]} Nd6 {[%emt 0:03:17]} 28. Rd1 {[%emt 0:03:16]} ({White should try} 28. b5 Qxb5 29. Qxb5 Nxb5 30. a4) 28... Nc4 $17 {[%emt 0:00:46]} 29. Bc1 {[%emt 0:01:25]} Rce8 {[%emt 0:09:36][%cal Bc8e8,Be8e7,Be7e3][%mdl 32]} 30. Qf1 {[%emt 0:01:24] Inhibits Re1.} R8e7 {[%emt 0:01:18]} 31. h3 {[%emt 0:02:04] [#]} (31. Bg5 $17 Re8 32. h4) 31... Qe8 $1 $19 {[%emt 0:01:03]} 32. Kg2 {[%emt 0:00:09]} Re1 {[%emt 0:01:01]} 33. Qd3 {[%emt 0:00:23] [#]} Qc6 {[%emt 0:01:35]} 34. f3 $2 {[%emt 0:06:46]} (34. b5 Qxb5 35. Bf4) 34... Ne3+ {[%emt 0:03:10]} 35. Bxe3 {[%emt 0:00:32]} R7xe3 {[%emt 0:00:21]} ({Worse is} 35... R1xe3 36. Qxd5 Qxd5 37. Rxd5 $17) 36. Qd2 {[%emt 0:02:16] [#]} d4 $1 {[%emt 0:04:32]} 37. Qxe1 {[%emt 0:00:58]} Qxf3+ {[%emt 0:00:04]} ({Not} 37... Rxe1 38. Rxe1 dxc3 39. Rce2 $17) 38. Kh2 {[%emt 0:00:03]} Rxe1 {[%emt 0:06:52]} 39. Rxe1 {[%emt 0:00:04]} dxc3 {[%emt 0:00:13] Strongly threatening ...Bf8.} 40. Re8+ {[%emt 0:01:57]} (40. Rg2) 40... Bf8 {[%emt 0:00:33] Black is clearly winning.} 41. Rce2 {[%emt 0:00:04]} Kg7 {[%emt 0:00:49]} 42. R8e3 {[%emt 0:00:14]} Qf1 {[%emt 0:01:09]} 43. Bc2 {[%emt 0:01:07]} Bxb4 {[%emt 0:02:08] And now ...Bc5 would win.} 44. Rg2 {[%emt 0:00:03]} f5 {[%emt 0:01:54] Hoping for ...f4.} 45. Rd3 {[%emt 0:00:36]} h5 {[%emt 0:01:16]} 46. h4 {[%emt 0:00:24]} Kh6 {[%emt 0:01:07]} 47. Rd1 {[%emt 0:01:09]} Qb5 {[%emt 0:02:50]} 48. Re1 {[%emt 0:01:10]} Bd6 {[%emt 0:01:33]} 49. Re3 {[%emt 0:01:41]} Qc4 {[%emt 0:00:58][%csl LRa2,LRh4] Threatens to win with ...Qxh4+.} 50. Rge2 {[%emt 0:01:08]} Qxh4+ {[%emt 0:00:27]} 51. Kg2 {[%emt 0:00:04]} Qg4 {[%emt 0:00:37] ...Bc5 is the strong threat.} 52. Bd1 {[%emt 0:00:43] [#]} Bxg3 $1 {[%emt 0:02:42]} 53. Rxg3 {[%emt 0:00:07]} c2 {[%emt 0:00:04] Weighted Error Value: White=0.49/Black=0.13 (very precise)} 0-1

[Event "3rd VIZAG GM-Open 2022"]
[Site "Visakapatnam"]
[Date "2022.06.14"]
[Round "6.8"]
[White "Bharat Kumar Reddy Poluri"]
[Black "Savchenko, Boris"]
[Result "0-1"]
[ECO "B91"]
[WhiteElo "2224"]
[BlackElo "2524"]
[Annotator "TA"]
[PlyCount "70"]
[EventDate "2022.06.13"]
[EventType "swiss"]
[EventCountry "IND"]
[SourceTitle "playchess.com"]
[Source "ChessBase"]
[SourceQuality "1"]
[TimeControl "5400+30"]

{[%evp 17,70,10,16,12,15,22,292,306,301,304,270,258,254,153,154,126,220,216,214,66,79,39,39,-28,-32,-30,-42,-42,-43,-43,-7,-14,0,0,0,0,0,0,0,0,0,0,0,0,0,0,0,-1384,-1368,-1254,-1072,-713,-713,-713,-664]} 1. e4 {[%emt 0:00:03]} c5 {[%emt 0:05:27]} 2. Nf3 {[%emt 0:00:09]} d6 {[%emt 0:00:13]} 3. d4 {[%emt 0:00:41]} cxd4 {[%emt 0:00:20]} 4. Nxd4 {[%emt 0:00:04]} Nf6 {[%emt 0:00:05]} 5. Nc3 {[%emt 0:00:06]} a6 {[%emt 0:00:03]} 6. g3 {[%emt 0:00:15]} e5 {[%emt 0:00:06]} 7. Nde2 {[%emt 0:00:08]} Be7 {[%emt 0:00:06]} 8. Bg2 {[%emt 0:00:12]} O-O {[%emt 0:00:22]} 9. O-O {[%emt 0:00:55]} b5 {[%emt 0:00:02]} 10. Nd5 {[%emt 0:01:19] B91: Sicilian Najdorf: 6 g3.} Nxd5 {[%emt 0:05:41]} 11. Qxd5 {[%emt 0:00:15] [#]} Qc7 $146 {[%emt 0:00:13][%mdl 8192]} ({Predecessor:} 11... Ra7 12. Be3 Rb7 13. Qd2 Nd7 14. Nc3 Nf6 15. Bg5 Be6 16. Bxf6 Bxf6 17. Nd5 Bg5 {½-½ (43) Vitiugov,N (2732)-Yu,Y (2763) Khanty-Mansiysk 2019}) 12. Qxa8 $18 {[%emt 0:09:31] White has a decisive advantage.} Nc6 {[%emt 0:00:06]} 13. Nc3 $1 {[%emt 0:01:41]} Bd8 {[%emt 0:00:06] [#]} 14. Nxb5 $1 {[%emt 0:10:13]} axb5 {[%emt 0:00:06]} 15. Qa3 {[%emt 0:05:57]} Nd4 {[%emt 0:00:18]} 16. Qd3 {[%emt 0:00:59]} Bg4 {[%emt 0:00:27]} (16... Qxc2 $16 17. Qa3 Qc6) 17. c3 {[%emt 0:08:00]} Be2 {[%emt 0:00:21] [#]} 18. Qd2 {[%emt 0:00:07]} Bxf1 $14 {[%emt 0:00:13]} 19. Kxf1 {[%emt 0:00:57]} Qc4+ {[%emt 0:00:20]} 20. Ke1 {[%emt 0:04:19]} (20. Kg1 $14 Ne2+ 21. Kh1) 20... Ba5 $11 {[%emt 0:07:34]} 21. Rb1 $1 {[%emt 0:09:24]} (21. b4 Bxb4 $1 22. Bb2 Ba5 $17) 21... Qxa2 {[%emt 0:00:43]} 22. Qd3 {[%emt 0:00:57]} Nb3 {[%emt 0:10:07]} 23. Be3 {[%emt 0:01:07]} Nc5 {[%emt 0:00:19]} (23... b4 $5 {[%cal Rb4c3]} 24. Rd1 Qxb2 25. cxb4 Bxb4+ 26. Kf1 Qa2 $15) 24. Qd1 {[%emt 0:08:39] And now Ra1 would win.} Na4 {[%emt 0:06:20][%cal Oa5c3] Threatens to win with ...Bxc3+!} 25. Bd2 {[%emt 0:01:10]} Bb6 {[%emt 0:23:02]} (25... Nxb2 $2 26. Qc2 $18) 26. Bf1 {[%emt 0:05:43][%cal Bg2f1,Bf1b5,Bb5a4][%mdl 32]} f5 {[%emt 0:11:04]} (26... Nxb2 $2 27. Qc2 $18) 27. Bxb5 {[%emt 0:04:33]} fxe4 {[%emt 0:00:11]} 28. Bxa4 {[%emt 0:03:38] Strongly threatening Bb3+.} Bxf2+ {[%emt 0:01:43]} 29. Kf1 {[%emt 0:00:19]} Kh8 $1 {[%emt 0:06:34]} 30. Kg2 $1 {[%emt 0:02:28] Black must now prevent Bb3.} e3 {[%emt 0:01:16]} 31. Bxe3 $1 {[%emt 0:02:58]} Bxe3 {[%emt 0:00:08]} 32. Qxd6 $2 {[%emt 0:00:44][%mdl 8192] [#]} (32. Bb3 $11 Qa6 33. Ra1 Qb7+ 34. Qd5 Rf2+ 35. Kh1 Qxd5+ 36. Bxd5) 32... Rf2+ $1 $19 {[%emt 0:05:47] Black is clearly winning.} ({Not} 32... Qf7 33. Bc6 $16) 33. Kh3 {[%emt 0:00:05] [#]} Bc5 $1 {[%emt 0:00:31]} ({Worse is} 33... h5 34. Qd8+ Kh7 35. Bc2+ (35. Qd3+ g6 $15) 35... Rxc2 36. Qd3+ g6 37. Qxc2 $11) 34. Qd8+ {[%emt 0:16:59]} Bf8 {[%emt 0:02:05]} 35. Qb6 {[%emt 0:01:01]} Rf6 {[%emt 0:00:38] Weighted Error Value: White=0.51/Black=0.20 (precise)} 0-1

[Event "3rd VIZAG GM-Open 2022"]
[Site "Visakapatnam"]
[Date "2022.06.14"]
[Round "6.9"]
[White "Bommini Mounika Akshaya"]
[Black "Nigmatov, Ortik"]
[Result "1/2-1/2"]
[ECO "E92"]
[WhiteElo "2108"]
[BlackElo "2463"]
[Annotator "TA"]
[PlyCount "102"]
[EventDate "2022.06.13"]
[EventType "swiss"]
[EventCountry "IND"]
[SourceTitle "playchess.com"]
[Source "ChessBase"]
[SourceQuality "1"]
[TimeControl "5400+30"]

{[%evp 22,102,11,20,41,22,87,66,68,0,9,0,62,58,87,106,97,18,24,34,23,0,11,0,0,-62,-49,-59,-62,-69,-39,-201,-75,-91,0,0,35,36,30,20,25,-71,-79,-68,-56,-56,-1,0,0,0,157,0,0,0,0,0,0,0,0,0,0,0,0,0,0,0,0,0,0,0,0,0,0,0,0,0,0,0,0,0,0,0,0]} 1. d4 {[%emt 0:04:27]} Nf6 {[%emt 0:00:07]} 2. c4 {[%emt 0:00:04]} g6 {[%emt 0:00:04]} 3. Nc3 {[%emt 0:00:06]} Bg7 {[%emt 0:00:03]} 4. e4 {[%emt 0:00:08]} d6 {[%emt 0:00:03]} 5. Nf3 {[%emt 0:00:09]} O-O {[%emt 0:00:08]} 6. Be2 {[%emt 0:00:10]} e5 {[%emt 0:00:08]} 7. d5 {[%emt 0:00:07]} a5 {[%emt 0:00:50]} 8. Bg5 {[%emt 0:00:10]} h6 {[%emt 0:00:47]} 9. Bh4 {[%emt 0:00:05]} Qe8 {[%emt 0:02:10]} 10. Nd2 {[%emt 0:00:25]} Na6 {[%emt 0:01:26]} 11. a3 {[%emt 0:03:53]} Bd7 {[%emt 0:00:36]} 12. b3 {[%emt 0:07:52]} c6 {[%emt 0:02:47] E92: King's Indian: Classical: 6 Be2 e5: 7 dxe5, 7 Be3 and Petrosian System without 7...Nbd7.} 13. O-O {[%emt 0:13:33]} Nh7 {[%emt 0:03:26]} (13... Qb8 $11 {keeps the balance.}) 14. Rb1 {[%emt 0:05:02][%cal Oc4c5] [#]} Nc7 $146 {[%emt 0:07:38] White is slightly better.} ({Predecessor:} 14... Bf6 15. Bg3 Bd8 16. f4 Bb6+ 17. Kh1 Bd4 18. Qc2 f6 19. Nf3 Bc5 20. Ra1 g5 {1-0 (59) Saric,S (2472)-Djurovic,G (2353) Croatia 2011}) 15. c5 {[%emt 0:18:56]} (15. f3 $14) 15... dxc5 $11 {[%emt 0:13:52]} 16. Nc4 {[%emt 0:00:13]} g5 {[%emt 0:02:38]} (16... Bf6 $11 17. Bg3 h5) 17. Bg3 $14 {[%emt 0:01:21] White is more active.} cxd5 {[%emt 0:18:56]} 18. exd5 {[%emt 0:09:13]} Nb5 {[%emt 0:13:59]} 19. Na4 {[%emt 0:14:11]} (19. Nxb5 $16 Bxb5 20. a4) 19... Rd8 {[%emt 0:10:53][%cal Od7c6]} 20. Nxa5 {[%emt 0:04:30]} ({Reject} 20. Nxc5 Nc3 21. Qc2 Nxb1 22. Rxb1 Bb5 $11) 20... Bc8 {[%emt 0:04:30]} 21. Rc1 {[%emt 0:03:54]} ({Don't go for} 21. Nxc5 $2 Nc3 22. Qd3 Nxe2+ 23. Qxe2 Rxd5 24. Ncxb7 Bxb7 25. Nxb7 Qc6 $19) (21. Bxb5 $5 Qxb5 22. Nc4 $11) 21... Nd4 {[%emt 0:00:13]} 22. Rxc5 {[%emt 0:01:38]} f5 {[%emt 0:00:08][%cal Bf7f5,Bf5f4][%mdl 32]} 23. f3 {[%emt 0:02:01]} ({Better is} 23. Bh5 $11 Qe7 24. Re1) 23... e4 {[%emt 0:01:50]} 24. Bf2 {[%emt 0:06:05]} e3 {[%emt 0:08:39]} 25. Be1 {[%emt 0:00:01]} f4 {[%emt 0:00:59]} 26. Nb6 $2 {[%emt 0:02:00] [#]} ({White should play} 26. Bc3 $15 Nxe2+ 27. Qxe2) 26... Nxe2+ {[%emt 0:01:17]} (26... Bf5 $1 $19 {and Black stays clearly on top. White must now prevent ...Qg6.} 27. Bc3 Bc2) 27. Qxe2 $17 {[%emt 0:00:02] [#]} Bd4 {[%emt 0:00:05]} (27... Bf5 $1 $17 {aiming for ...Qg6.} 28. Qc4 Rf7) 28. Rxc8 $11 {[%emt 0:01:53]} Bxb6 {[%emt 0:00:37]} 29. Rxd8 {[%emt 0:00:32]} Qxd8 {[%emt 0:00:04]} 30. Nc4 $36 {[%emt 0:01:05][%mdl 2048] Strongly threatening Bc3. White has some pressure.} Bc5 {[%emt 0:00:05]} 31. Bb4 {[%emt 0:01:32]} (31. d6 $1 $11 {remains equal.}) 31... Qxd5 $17 {[%emt 0:01:40] Threatens to win with ...Bxb4.} 32. Bxc5 {[%emt 0:00:11]} Qxc5 {[%emt 0:00:03]} 33. Rd1 {[%emt 0:00:12] Against Rd8} b5 {[%emt 0:00:40]} (33... Rc8 $15) 34. Nd6 $11 {[%emt 0:01:16]} Rd8 {[%emt 0:01:28]} 35. b4 {[%emt 0:00:01]} Qxd6 {[%emt 0:00:23]} (35... Qa7 $11) 36. Qa2+ $2 {[%emt 0:00:40]} ({Only move:} 36. Rxd6 $16 Rxd6 37. g3) 36... Kg7 {[%emt 0:00:38][%cal Rd6d1] The position is equal.} 37. Qa1+ {[%emt 0:00:27]} Nf6 {[%emt 0:00:14]} 38. Rxd6 {[%emt 0:00:07]} Rxd6 {[%emt 0:00:01][%mdl 4096] Endgame KQ-KRN} 39. Kf1 {[%emt 0:00:17]} Rd2 {[%emt 0:01:26] Hoping for ...e2+.} 40. Qe5 {[%emt 0:00:58]} Rd1+ {[%emt 0:01:26]} 41. Ke2 {[%emt 0:00:02]} Rd2+ {[%emt 0:00:06]} 42. Kf1 {[%emt 0:00:04]} Rd5 {[%emt 0:00:52]} 43. Qe7+ {[%emt 0:00:51]} Kg6 {[%emt 0:00:06]} 44. Qe6 {[%emt 0:00:33]} Rd1+ {[%emt 0:02:03]} 45. Ke2 {[%emt 0:00:01]} Rd2+ {[%emt 0:00:05]} 46. Kf1 {[%emt 0:00:06]} Rd1+ {[%emt 0:00:56]} 47. Ke2 {[%emt 0:00:02]} Rg1 {[%emt 0:00:04]} 48. g4 {[%emt 0:02:30] Qf5+ is the strong threat.} Rg2+ {[%emt 0:00:06]} 49. Ke1 {[%emt 0:00:05]} Rg1+ {[%emt 0:01:37]} 50. Ke2 {[%emt 0:00:01]} Rg2+ {[%emt 0:00:06]} 51. Ke1 {[%emt 0:00:12]} Rg1+ {[%emt 0:01:10] Weighted Error Value: White=0.32/Black=0.27 (precise)} 1/2-1/2

[Event "3rd VIZAG GM-Open 2022"]
[Site "Visakapatnam"]
[Date "2022.06.14"]
[Round "6.10"]
[White "Neelotpal, Das"]
[Black "Barath Kalyan M"]
[Result "1-0"]
[ECO "B90"]
[WhiteElo "2431"]
[BlackElo "2232"]
[Annotator "TA"]
[PlyCount "55"]
[EventDate "2022.06.13"]
[EventType "swiss"]
[EventCountry "IND"]
[SourceTitle "playchess.com"]
[Source "ChessBase"]
[SourceQuality "1"]
[TimeControl "5400+30"]

{[%evp 10,54,21,5,4,0,16,10,14,21,8,11,17,-1,27,-31,-3,-16,0,6,46,43,100,84,151,100,193,187,331,348,336,318,330,188,685,601,691,564,29991,29992,29996,29997,29997,29998,29998,29999,29999]} 1. e4 {[%emt 0:00:06]} c5 {[%emt 0:00:52]} 2. Nf3 {[%emt 0:00:06]} d6 {[%emt 0:00:06]} 3. d4 {[%emt 0:00:08]} cxd4 {[%emt 0:00:04]} 4. Nxd4 {[%emt 0:00:07]} Nf6 {[%emt 0:00:04]} 5. Nc3 {[%emt 0:00:05]} a6 {[%emt 0:00:03]} 6. a3 {[%emt 0:00:34]} e5 {[%emt 0:02:07] B90: Sicilian Najdorf: Unusual White 6th moves, 6 Be3 Ng4 and 6 Be3 e5.} 7. Nf3 {[%emt 0:01:51]} Qc7 {[%emt 0:01:19]} 8. Bg5 {[%emt 0:02:48] Threatening Bxf6.} Nbd7 {[%emt 0:00:14] The position is equal.} 9. Nd2 {[%emt 0:00:44]} b5 {[%emt 0:05:51] [#]} 10. Bd3 $146 {[%emt 0:01:05]} ({Predecessor:} 10. Be2 Be7 11. O-O O-O 12. Kh1 Bb7 13. Bg4 Rfe8 14. Bxd7 Nxd7 15. Qg4 Bxg5 16. Qxg5 {0-1 (30) Durarbayli,V (2626)-Moussard,J (2595) Chess.com INT 2019}) 10... Bb7 {[%emt 0:01:29]} 11. Nf1 {[%emt 0:00:39]} g6 {[%emt 0:01:34]} 12. Ng3 {[%emt 1:28:17]} (12. Ne3 $11) 12... Bg7 {[%emt 1:22:47]} 13. h4 {[%emt 0:00:00]} O-O 14. h5 $1 {[%emt 0:00:00]} Rfe8 15. Qd2 {[%emt 0:00:00]} d5 (15... Nf8 $14) 16. hxg6 $16 {[%emt 0:00:00]} hxg6 {[#]} ({Black should play} 16... fxg6 17. exd5 e4) 17. exd5 {[%emt 0:02:30]} ({White should try} 17. Bh6 $1 {[%cal Rh6g7] And now Bxg7 would win.} Bh8 18. exd5) 17... Qd6 {[%emt 0:02:30]} (17... e4 $16 18. Be2 (18. Ncxe4 $2 Bxd5 19. Bf4 Nxe4 $19) (18. Ngxe4 $2 Nxe4 19. Nxe4 Bxd5 $19) 18... Rac8) 18. O-O-O $18 {[%emt 0:00:30]} b4 {[%emt 0:00:30]} (18... e4 $142) 19. Nce4 {[%emt 0:00:00]} Nxe4 {[%emt 0:00:00]} 20. Nxe4 {[%emt 0:00:00]} Qxd5 {[%emt 0:00:00]} 21. Qxb4 {[%emt 0:00:00]} (21. Bh6 $142 {Bxg7 would kill now.} Qa2 22. Qg5 (22. Qxb4 Bxh6+ 23. Rxh6 Bxe4 $18) 22... Bxe4 23. Bxg7 Kxg7 24. Bxe4 Qa1+ 25. Kd2 Qxb2 26. Bxa8 Rxa8 27. Qh6+ Kf6 28. Qh4+ g5 29. Qxb4 Qxb4+ 30. axb4) 21... Bc6 $2 {[%emt 0:00:00] [#]} (21... a5 22. Qa4 Bc6) 22. Bc4 $1 {[%emt 0:00:00]} Qxe4 {[%emt 0:00:00] [#]} 23. Rxd7 $1 {[%emt 0:00:00][%csl Gd7][%cal Rc4f7][%mdl 512]} Rf8 {[%emt 0:00:00] [#]} (23... Qxc4 24. Qxc4) 24. Rxf7 $1 {[%emt 0:00:00][%csl Gb4][%cal Rf7f8][%mdl 512] White mates.} Bd5 {[%emt 0:00:00] [#]} (24... Qxc2+ 25. Kxc2) 25. Rxg7+ $1 {[%emt 0:00:00]} Kxg7 {[%emt 0:00:00]} 26. Qe7+ {[%emt 0:00:00]} Rf7 {[%emt 0:00:00]} 27. Bf6+ {[%emt 0:00:00] A strong pair of Bishops.} Kg8 {[%emt 0:00:00]} 28. Rh8# {[%emt 0:05:00] Weighted Error Value: White=0.18 (very precise) /Black=0.87} 1-0